[Event "Late-Titled-Tuesday-Blitz-April-30-2024"]
[Site "Chess.com"]
[Date "2024.04.30"]
[Round "8"]
[White "brother-bear"]
[Black "FMOlexandrProhorov"]
[Result "0-1"]
[WhiteElo "2082"]
[BlackElo "2275"]
[TimeControl "180+1"]
[EndTime "15:27:55 PDT"]
[Termination "FMOlexandrProhorov won on time"]

1. d4 {[%clk 0:03:00.9]} 1... g6 {[%clk 0:02:56]} 2. c4 {[%clk 0:03:00]} 2...
Bg7 {[%clk 0:02:55.8]} 3. Nc3 {[%clk 0:03:00.3]} 3... c5 {[%clk 0:02:55.9]} 4.
d5 {[%clk 0:02:58]} 4... Bxc3+ {[%clk 0:02:55.3]} 5. bxc3 {[%clk 0:02:58.3]}
5... f5 {[%clk 0:02:56.2]} 6. h4 {[%clk 0:02:54.9]} 6... Nf6 {[%clk 0:02:54.3]}
7. Bg5 {[%clk 0:02:50.6]} 7... Qa5 {[%clk 0:02:49.1]} 8. Bxf6 {[%clk 0:02:46.8]}
8... exf6 {[%clk 0:02:48]} 9. Qd2 {[%clk 0:02:46.8]} 9... d6 {[%clk 0:02:36.3]}
10. h5 {[%clk 0:02:44.5]} 10... g5 {[%clk 0:02:35.9]} 11. h6 {[%clk 0:02:41.5]}
11... Nd7 {[%clk 0:02:32.9]} 12. e3 {[%clk 0:02:27.5]} 12... Nb6 {[%clk
0:02:32.3]} 13. f4 {[%clk 0:02:16]} 13... Bd7 {[%clk 0:02:20.1]} 14. g3 {[%clk
0:01:40]} 14... O-O-O {[%clk 0:02:18.7]} 15. Kf2 {[%clk 0:01:39.2]} 15... Rhg8
{[%clk 0:02:15.3]} 16. Bd3 {[%clk 0:01:38.8]} 16... Qa4 {[%clk 0:02:05.7]} 17.
Qe2 {[%clk 0:01:19.3]} 17... Rde8 {[%clk 0:02:04.3]} 18. Nf3 {[%clk 0:01:16.1]}
18... Re7 {[%clk 0:01:40.7]} 19. Nd2 {[%clk 0:01:07.8]} 19... Rge8 {[%clk
0:01:35.2]} 20. Qf3 {[%clk 0:00:56.2]} 20... Rxe3 {[%clk 0:01:12.1]} 21. Qxe3
{[%clk 0:00:55.6]} 21... Rxe3 {[%clk 0:01:12.4]} 22. Kxe3 {[%clk 0:00:55.9]}
22... Qa3 {[%clk 0:01:07.2]} 23. Rac1 {[%clk 0:00:45.3]} 23... g4 {[%clk
0:01:05.9]} 24. Rh5 {[%clk 0:00:40.5]} 24... Na4 {[%clk 0:00:49.4]} 25. Rc2
{[%clk 0:00:36.7]} 25... Nxc3 {[%clk 0:00:45.5]} 26. Nb3 {[%clk 0:00:29.4]}
26... Nxa2 {[%clk 0:00:39.2]} 27. Rxa2 {[%clk 0:00:15.7]} 27... Qxa2 {[%clk
0:00:37.8]} 28. Nd2 {[%clk 0:00:14]} 28... Qa1 {[%clk 0:00:34.9]} 29. Bxf5
{[%clk 0:00:12.4]} 29... Qd4+ {[%clk 0:00:30.2]} 30. Ke2 {[%clk 0:00:10.4]}
30... a5 {[%clk 0:00:27.2]} 31. Bxh7 {[%clk 0:00:07.3]} 31... f5 {[%clk
0:00:18]} 32. Bxf5 {[%clk 0:00:04.6]} 32... Bxf5 {[%clk 0:00:17.5]} 33. Rxf5
{[%clk 0:00:04.4]} 33... Qh8 {[%clk 0:00:16.8]} 34. Rh5 {[%clk 0:00:02]} 34...
a4 {[%clk 0:00:16.6]} 0-1

[Event "Late-Titled-Tuesday-Blitz-April-30-2024"]
[Site "Chess.com"]
[Date "2024.04.30"]
[Round "8"]
[White "Kostukov_Alex"]
[Black "MuhittinBuker"]
[Result "1-0"]
[WhiteElo "2379"]
[BlackElo "2177"]
[TimeControl "180+1"]
[EndTime "15:27:55 PDT"]
[Termination "Kostukov_Alex won by resignation"]

1. g3 {[%clk 0:02:58.9]} 1... g6 {[%clk 0:02:59.5]} 2. Bg2 {[%clk 0:02:58.8]}
2... Bg7 {[%clk 0:03:00.1]} 3. c4 {[%clk 0:02:59.2]} 3... d6 {[%clk 0:02:58.6]}
4. d4 {[%clk 0:02:55.6]} 4... Nc6 {[%clk 0:02:57.3]} 5. Nf3 {[%clk 0:02:53.7]}
5... e5 {[%clk 0:02:56.9]} 6. dxe5 {[%clk 0:02:47.4]} 6... Nxe5 {[%clk 0:02:56]}
7. O-O {[%clk 0:02:38.9]} 7... Nxf3+ {[%clk 0:02:54.7]} 8. Bxf3 {[%clk
0:02:37.5]} 8... Ne7 {[%clk 0:02:55.2]} 9. Bg2 {[%clk 0:02:35.5]} 9... O-O
{[%clk 0:02:55.6]} 10. Nc3 {[%clk 0:02:32.4]} 10... Nc6 {[%clk 0:02:55.2]} 11.
Rb1 {[%clk 0:02:26.9]} 11... Be6 {[%clk 0:02:54.2]} 12. Nd5 {[%clk 0:02:25.3]}
12... Rb8 {[%clk 0:02:25.8]} 13. b3 {[%clk 0:02:21]} 13... Re8 {[%clk
0:02:25.1]} 14. Bb2 {[%clk 0:02:18.8]} 14... Bf5 {[%clk 0:02:24.2]} 15. Bxg7
{[%clk 0:02:13]} 15... Kxg7 {[%clk 0:02:23.8]} 16. Rc1 {[%clk 0:02:07.7]} 16...
f6 {[%clk 0:02:22.7]} 17. e3 {[%clk 0:02:00.4]} 17... Be4 {[%clk 0:02:21.6]} 18.
Nf4 {[%clk 0:01:48.3]} 18... Bxg2 {[%clk 0:02:19]} 19. Kxg2 {[%clk 0:01:48.5]}
19... Qe7 {[%clk 0:02:17]} 20. h4 {[%clk 0:01:44.5]} 20... Qe4+ {[%clk
0:02:07.9]} 21. Qf3 {[%clk 0:01:42.7]} 21... Qxf3+ {[%clk 0:02:06]} 22. Kxf3
{[%clk 0:01:43.6]} 22... Ne5+ {[%clk 0:02:05.7]} 23. Ke2 {[%clk 0:01:40.6]}
23... c6 {[%clk 0:02:02.6]} 24. Rfd1 {[%clk 0:01:39.3]} 24... Rbd8 {[%clk
0:02:03]} 25. Rd4 {[%clk 0:01:32.6]} 25... f5 {[%clk 0:01:56.2]} 26. Rcd1 {[%clk
0:01:19.3]} 26... Nf7 {[%clk 0:01:53.3]} 27. b4 {[%clk 0:01:14]} 27... Kf6
{[%clk 0:01:49.6]} 28. a4 {[%clk 0:01:12.9]} 28... h6 {[%clk 0:01:46.8]} 29. a5
{[%clk 0:00:59.9]} 29... a6 {[%clk 0:01:45.7]} 30. b5 {[%clk 0:00:55.3]} 30...
g5 {[%clk 0:01:43.9]} 31. hxg5+ {[%clk 0:00:51.4]} 31... hxg5 {[%clk 0:01:43.6]}
32. Nd3 {[%clk 0:00:51.4]} 32... axb5 {[%clk 0:01:40.9]} 33. cxb5 {[%clk
0:00:51.2]} 33... cxb5 {[%clk 0:01:38.5]} 34. Rb4 {[%clk 0:00:41.5]} 34... Re7
{[%clk 0:01:22.4]} 35. Rxb5 {[%clk 0:00:41]} 35... Rde8 {[%clk 0:01:22.7]} 36.
Nb4 {[%clk 0:00:38.5]} 36... Re5 {[%clk 0:01:14.7]} 37. Nd5+ {[%clk 0:00:32.9]}
37... Kg6 {[%clk 0:01:12]} 38. Rxb7 {[%clk 0:00:29.2]} 38... f4 {[%clk
0:01:11.1]} 39. gxf4 {[%clk 0:00:28.3]} 39... gxf4 {[%clk 0:01:10.9]} 40. Nxf4+
{[%clk 0:00:28.2]} 40... Kg7 {[%clk 0:01:04]} 41. Rg1+ {[%clk 0:00:27.5]} 41...
Kf8 {[%clk 0:00:52.8]} 42. Ng6+ {[%clk 0:00:27]} 1-0

[Event "Late-Titled-Tuesday-Blitz-April-30-2024"]
[Site "Chess.com"]
[Date "2024.04.30"]
[Round "8"]
[White "Individoom"]
[Black "JonasEilenberg"]
[Result "1-0"]
[WhiteElo "2771"]
[BlackElo "2561"]
[TimeControl "180+1"]
[EndTime "15:27:59 PDT"]
[Termination "Individoom won by resignation"]

1. e4 {[%clk 0:03:00.9]} 1... c5 {[%clk 0:02:59.9]} 2. d4 {[%clk 0:03:00.5]}
2... cxd4 {[%clk 0:03:00]} 3. c3 {[%clk 0:03:01.1]} 3... Nf6 {[%clk 0:03:00.6]}
4. e5 {[%clk 0:03:00]} 4... Nd5 {[%clk 0:03:01.2]} 5. Nf3 {[%clk 0:03:00.5]}
5... Nc6 {[%clk 0:03:01.4]} 6. Bc4 {[%clk 0:03:00.3]} 6... Nb6 {[%clk
0:03:01.3]} 7. Bb3 {[%clk 0:03:01]} 7... d5 {[%clk 0:03:01.7]} 8. cxd4 {[%clk
0:02:59.5]} 8... Bg4 {[%clk 0:03:01.4]} 9. Be3 {[%clk 0:02:57.2]} 9... e6 {[%clk
0:03:01.5]} 10. h3 {[%clk 0:02:56.6]} 10... Bh5 {[%clk 0:03:01.5]} 11. O-O
{[%clk 0:02:55.6]} 11... Be7 {[%clk 0:03:01.9]} 12. Nbd2 {[%clk 0:02:53.2]}
12... O-O {[%clk 0:03:02.2]} 13. Qe2 {[%clk 0:02:48.8]} 13... Rc8 {[%clk
0:03:01.6]} 14. Rfc1 {[%clk 0:02:47.9]} 14... Na5 {[%clk 0:03:01.7]} 15. Bc2
{[%clk 0:02:41.4]} 15... Nac4 {[%clk 0:02:51.2]} 16. Nxc4 {[%clk 0:02:41.1]}
16... Nxc4 {[%clk 0:02:51.8]} 17. g4 {[%clk 0:02:40.6]} 17... Bg6 {[%clk
0:02:51.6]} 18. Bxg6 {[%clk 0:02:40.7]} 18... fxg6 {[%clk 0:02:44]} 19. b3
{[%clk 0:02:40.5]} 19... Nxe3 {[%clk 0:02:40.2]} 20. Qxe3 {[%clk 0:02:37.7]}
20... Qa5 {[%clk 0:02:20.8]} 21. a4 {[%clk 0:02:30.9]} 21... Qb4 {[%clk
0:02:14]} 22. Kg2 {[%clk 0:02:29.1]} 22... a5 {[%clk 0:02:10.2]} 23. h4 {[%clk
0:02:26.1]} 23... h6 {[%clk 0:02:08.1]} 24. Kg3 {[%clk 0:02:21.1]} 24... Kh7
{[%clk 0:02:04.3]} 25. Qd3 {[%clk 0:02:19.8]} 25... Qb6 {[%clk 0:01:52.9]} 26.
h5 {[%clk 0:02:18.1]} 26... Kg8 {[%clk 0:01:34.6]} 27. hxg6 {[%clk 0:02:16.3]}
27... Qd8 {[%clk 0:01:19.3]} 28. Rc2 {[%clk 0:02:03.9]} 28... Bg5 {[%clk
0:01:16.3]} 29. Rxc8 {[%clk 0:01:52.4]} 29... Bf4+ {[%clk 0:01:15.1]} 30. Kg2
{[%clk 0:01:51]} 30... Qxc8 {[%clk 0:01:16]} 31. Ra2 {[%clk 0:01:46.5]} 31...
Qd7 {[%clk 0:00:53.5]} 32. Rc2 {[%clk 0:01:44.8]} 32... Rc8 {[%clk 0:00:54]} 33.
Qb5 {[%clk 0:01:29.6]} 33... Qd8 {[%clk 0:00:46.4]} 34. Qxa5 {[%clk 0:01:23.8]}
34... Qe8 {[%clk 0:00:39.4]} 35. Qb5 {[%clk 0:01:20.8]} 35... Rc6 {[%clk
0:00:36.8]} 36. Rxc6 {[%clk 0:01:17.4]} 36... bxc6 {[%clk 0:00:37.7]} 37. Qd3
{[%clk 0:01:16.8]} 37... Qd8 {[%clk 0:00:37.9]} 38. b4 {[%clk 0:01:14.4]} 38...
Qb6 {[%clk 0:00:38.5]} 39. Qc3 {[%clk 0:01:08.5]} 39... Qb7 {[%clk 0:00:34.7]}
40. a5 {[%clk 0:01:07]} 40... Qa6 {[%clk 0:00:32.3]} 41. Qa3 {[%clk 0:01:01.5]}
41... Bg5 {[%clk 0:00:12.7]} 42. Nxg5 {[%clk 0:00:54.8]} 42... hxg5 {[%clk
0:00:13.6]} 43. Qf3 {[%clk 0:00:54.8]} 43... Qa8 {[%clk 0:00:04.7]} 44. Qf7+
{[%clk 0:00:52.9]} 44... Kh8 {[%clk 0:00:05.3]} 45. a6 {[%clk 0:00:51.8]} 45...
c5 {[%clk 0:00:02.1]} 46. Qb7 {[%clk 0:00:47.7]} 46... Qf8 {[%clk 0:00:01.7]}
47. a7 {[%clk 0:00:47.5]} 47... cxb4 {[%clk 0:00:00.8]} 48. a8=Q {[%clk
0:00:47.4]} 48... b3 {[%clk 0:00:00.8]} 1-0

[Event "Late-Titled-Tuesday-Blitz-April-30-2024"]
[Site "Chess.com"]
[Date "2024.04.30"]
[Round "8"]
[White "Meri-Arabidze"]
[Black "rdarruda"]
[Result "1-0"]
[WhiteElo "2703"]
[BlackElo "2553"]
[TimeControl "180+1"]
[EndTime "15:28:00 PDT"]
[Termination "Meri-Arabidze won by resignation"]

1. Nf3 {[%clk 0:03:00.9]} 1... d5 {[%clk 0:02:57.1]} 2. c4 {[%clk 0:03:01.2]}
2... c6 {[%clk 0:02:54.6]} 3. g3 {[%clk 0:03:01.4]} 3... Nf6 {[%clk 0:02:54.1]}
4. Bg2 {[%clk 0:03:01.7]} 4... g6 {[%clk 0:02:54.2]} 5. b3 {[%clk 0:03:00.5]}
5... Bg7 {[%clk 0:02:54.2]} 6. Bb2 {[%clk 0:03:01.2]} 6... O-O {[%clk
0:02:54.5]} 7. O-O {[%clk 0:03:01.5]} 7... Nbd7 {[%clk 0:02:54.5]} 8. d4 {[%clk
0:02:54]} 8... Ne4 {[%clk 0:02:53.5]} 9. Nbd2 {[%clk 0:02:50.6]} 9... Nxd2
{[%clk 0:02:52.9]} 10. Qxd2 {[%clk 0:02:49.6]} 10... Nf6 {[%clk 0:02:53.3]} 11.
Ne5 {[%clk 0:02:49.1]} 11... Ne4 {[%clk 0:02:53.2]} 12. Qc2 {[%clk 0:02:43]}
12... f6 {[%clk 0:02:47]} 13. Nd3 {[%clk 0:02:38.7]} 13... Bf5 {[%clk
0:02:44.8]} 14. Rfe1 {[%clk 0:02:33.8]} 14... Kh8 {[%clk 0:02:43.4]} 15. f3
{[%clk 0:02:31.1]} 15... Nd6 {[%clk 0:02:41.5]} 16. c5 {[%clk 0:02:25.8]} 16...
Nf7 {[%clk 0:02:38]} 17. e4 {[%clk 0:02:25.9]} 17... dxe4 {[%clk 0:02:36.8]} 18.
fxe4 {[%clk 0:02:26.8]} 18... Bg4 {[%clk 0:02:34.7]} 19. h3 {[%clk 0:02:24.7]}
19... Bd7 {[%clk 0:02:29.8]} 20. Rad1 {[%clk 0:02:18.4]} 20... Qc8 {[%clk
0:02:25.2]} 21. Kh2 {[%clk 0:02:18.4]} 21... b6 {[%clk 0:02:19.9]} 22. b4 {[%clk
0:02:05.3]} 22... Ng5 {[%clk 0:02:19]} 23. h4 {[%clk 0:01:56.9]} 23... Nf7
{[%clk 0:02:18.7]} 24. d5 {[%clk 0:01:50.5]} 24... Bg4 {[%clk 0:02:15]} 25. Rd2
{[%clk 0:01:50.1]} 25... Ne5 {[%clk 0:02:12.6]} 26. Nxe5 {[%clk 0:01:45.6]}
26... fxe5 {[%clk 0:02:13.5]} 27. d6 {[%clk 0:01:38.6]} 27... exd6 {[%clk
0:02:10.8]} 28. cxd6 {[%clk 0:01:38.3]} 28... Qd7 {[%clk 0:02:07]} 29. Rc1
{[%clk 0:01:29]} 29... Rac8 {[%clk 0:02:06.3]} 30. Bc3 {[%clk 0:01:10.3]} 30...
c5 {[%clk 0:02:02.3]} 31. Qb2 {[%clk 0:01:06.7]} 31... cxb4 {[%clk 0:01:49]} 32.
Bxe5 {[%clk 0:01:06.6]} 32... Rxc1 {[%clk 0:01:33.1]} 33. Bxg7+ {[%clk
0:01:06.4]} 33... Qxg7 {[%clk 0:01:33.1]} 34. Qxc1 {[%clk 0:01:07.1]} 34... Qc3
{[%clk 0:01:29.3]} 35. Rc2 {[%clk 0:01:06.8]} 35... Qd4 {[%clk 0:01:28]} 36. Rd2
{[%clk 0:01:02.7]} 36... Qc3 {[%clk 0:01:26.9]} 37. Qe1 {[%clk 0:00:57.2]} 37...
Re8 {[%clk 0:00:56.5]} 38. Qf2 {[%clk 0:00:57.2]} 38... Kg7 {[%clk 0:00:43.5]}
39. Qf4 {[%clk 0:00:43.2]} 39... h5 {[%clk 0:00:40.8]} 40. Rf2 {[%clk
0:00:38.5]} 40... Be6 {[%clk 0:00:32.9]} 41. d7 {[%clk 0:00:27.1]} 41... Rd8
{[%clk 0:00:30.3]} 42. Qd6 {[%clk 0:00:27.2]} 42... Qc5 {[%clk 0:00:18.7]} 43.
Qxe6 {[%clk 0:00:26.4]} 43... Qxf2 {[%clk 0:00:17.7]} 44. Qe7+ {[%clk
0:00:26.9]} 44... Kh6 {[%clk 0:00:15.8]} 45. Qxd8 {[%clk 0:00:25.7]} 45... Qb2
{[%clk 0:00:13.4]} 46. Qg5+ {[%clk 0:00:25.1]} 1-0

[Event "Late-Titled-Tuesday-Blitz-April-30-2024"]
[Site "Chess.com"]
[Date "2024.04.30"]
[Round "8"]
[White "HajiyevKanan"]
[Black "MarkoPe"]
[Result "1-0"]
[WhiteElo "2621"]
[BlackElo "2454"]
[TimeControl "180+1"]
[EndTime "15:28:00 PDT"]
[Termination "HajiyevKanan won by checkmate"]

1. d4 {[%clk 0:03:00.9]} 1... c6 {[%clk 0:03:00.9]} 2. Nf3 {[%clk 0:03:01.6]}
2... d6 {[%clk 0:03:01.3]} 3. c4 {[%clk 0:03:02.5]} 3... Nd7 {[%clk 0:03:01.9]}
4. g3 {[%clk 0:03:02.9]} 4... Ngf6 {[%clk 0:03:02.6]} 5. Bg2 {[%clk 0:03:03.6]}
5... g6 {[%clk 0:03:03.3]} 6. O-O {[%clk 0:03:03.3]} 6... Bg7 {[%clk 0:03:03.8]}
7. b3 {[%clk 0:03:03.9]} 7... O-O {[%clk 0:03:04.5]} 8. Bb2 {[%clk 0:03:04.8]}
8... Qc7 {[%clk 0:03:04.3]} 9. Nbd2 {[%clk 0:03:05.1]} 9... e5 {[%clk
0:03:04.9]} 10. c5 {[%clk 0:03:01.5]} 10... exd4 {[%clk 0:02:59.4]} 11. cxd6
{[%clk 0:03:01.5]} 11... Qxd6 {[%clk 0:03:00.3]} 12. Nxd4 {[%clk 0:03:00.5]}
12... Ne5 {[%clk 0:02:50]} 13. Qc2 {[%clk 0:02:54.8]} 13... Bg4 {[%clk
0:02:42.4]} 14. h3 {[%clk 0:02:51.3]} 14... Bd7 {[%clk 0:02:38.2]} 15. Rfc1
{[%clk 0:02:49.5]} 15... Rfe8 {[%clk 0:02:37.1]} 16. a4 {[%clk 0:02:47.6]} 16...
Rad8 {[%clk 0:02:35.8]} 17. a5 {[%clk 0:02:42.8]} 17... Nd5 {[%clk 0:01:55.7]}
18. Ne4 {[%clk 0:02:24.9]} 18... Qb4 {[%clk 0:01:35.9]} 19. Ra4 {[%clk
0:02:08.8]} 19... Qe7 {[%clk 0:01:27.1]} 20. Ba3 {[%clk 0:02:07.4]} 20... c5
{[%clk 0:01:04.2]} 21. Bxc5 {[%clk 0:02:07.2]} 21... Rc8 {[%clk 0:00:55.2]} 22.
Bxe7 {[%clk 0:01:28.2]} 22... Rxc2 {[%clk 0:00:56.1]} 23. Rxc2 {[%clk
0:01:26.4]} 23... Bxa4 {[%clk 0:00:56.4]} 24. Bc5 {[%clk 0:00:52.3]} 24... Nc6
{[%clk 0:00:45.9]} 25. bxa4 {[%clk 0:00:38.5]} 25... Nxd4 {[%clk 0:00:45.4]} 26.
Bxd4 {[%clk 0:00:37.2]} 26... Bxd4 {[%clk 0:00:46.3]} 27. Rd2 {[%clk 0:00:31.7]}
27... Nc3 {[%clk 0:00:46.5]} 28. Nxc3 {[%clk 0:00:24.6]} 28... Bxc3 {[%clk
0:00:47.4]} 29. Rd7 {[%clk 0:00:23]} 29... Bxa5 {[%clk 0:00:46.2]} 30. e3 {[%clk
0:00:20]} 30... Rc8 {[%clk 0:00:41.1]} 31. Bxb7 {[%clk 0:00:19.6]} 31... Rc1+
{[%clk 0:00:41]} 32. Kg2 {[%clk 0:00:20.1]} 32... Rc4 {[%clk 0:00:35.2]} 33. Bd5
{[%clk 0:00:15.4]} 33... Rxa4 {[%clk 0:00:35.6]} 34. Rxf7 {[%clk 0:00:15.6]}
34... Kh8 {[%clk 0:00:30.2]} 35. Rxa7 {[%clk 0:00:16.2]} 35... Ra1 {[%clk
0:00:25.7]} 36. g4 {[%clk 0:00:11.4]} 36... Bc3 {[%clk 0:00:23.9]} 37. Rc7
{[%clk 0:00:11.6]} 37... Be5 {[%clk 0:00:23.2]} 38. Re7 {[%clk 0:00:11.5]} 38...
Bd6 {[%clk 0:00:22.5]} 39. Rd7 {[%clk 0:00:11.6]} 39... Bc5 {[%clk 0:00:22.6]}
40. g5 {[%clk 0:00:11.9]} 40... Rc1 {[%clk 0:00:19.5]} 41. Rd8+ {[%clk
0:00:11.6]} 41... Kg7 {[%clk 0:00:19.3]} 42. Rg8# {[%clk 0:00:12.3]} 1-0

[Event "Late-Titled-Tuesday-Blitz-April-30-2024"]
[Site "Chess.com"]
[Date "2024.04.30"]
[Round "8"]
[White "Bala-Afiada"]
[Black "Sesleria"]
[Result "1-0"]
[WhiteElo "2012"]
[BlackElo "2099"]
[TimeControl "180+1"]
[EndTime "15:28:00 PDT"]
[Termination "Bala-Afiada won by checkmate"]

1. d4 {[%clk 0:02:47.2]} 1... d5 {[%clk 0:02:58.3]} 2. c4 {[%clk 0:02:47.5]}
2... e6 {[%clk 0:02:58.4]} 3. Nf3 {[%clk 0:02:47.7]} 3... c6 {[%clk 0:02:56.2]}
4. Qc2 {[%clk 0:02:47.7]} 4... f5 {[%clk 0:02:50.6]} 5. g3 {[%clk 0:02:47]} 5...
Nf6 {[%clk 0:02:50.9]} 6. Bg2 {[%clk 0:02:47.4]} 6... Bd6 {[%clk 0:02:51.2]} 7.
b3 {[%clk 0:02:47.5]} 7... O-O {[%clk 0:02:51.6]} 8. Ba3 {[%clk 0:02:47.7]} 8...
b6 {[%clk 0:02:49.3]} 9. Bxd6 {[%clk 0:02:46.8]} 9... Qxd6 {[%clk 0:02:49.7]}
10. Nbd2 {[%clk 0:02:42.6]} 10... a5 {[%clk 0:02:47.7]} 11. O-O {[%clk
0:02:41.1]} 11... Na6 {[%clk 0:02:45.5]} 12. Ne5 {[%clk 0:02:32.1]} 12... Bb7
{[%clk 0:02:45.5]} 13. Ndf3 {[%clk 0:02:23.4]} 13... Rac8 {[%clk 0:02:44.7]} 14.
Rac1 {[%clk 0:02:17.8]} 14... c5 {[%clk 0:02:36.9]} 15. cxd5 {[%clk 0:02:05.9]}
15... cxd4 {[%clk 0:02:34.3]} 16. Qd3 {[%clk 0:01:49.2]} 16... Nb4 {[%clk
0:02:34.1]} 17. Qxd4 {[%clk 0:01:41.4]} 17... Bxd5 {[%clk 0:02:32.4]} 18. Nc4
{[%clk 0:01:03.7]} 18... Qb8 {[%clk 0:02:07.8]} 19. Nxb6 {[%clk 0:00:54.3]}
19... Rxc1 {[%clk 0:02:06.3]} 20. Rxc1 {[%clk 0:00:50.1]} 20... Nxa2 {[%clk
0:02:05.4]} 21. Rb1 {[%clk 0:00:26.7]} 21... Be4 {[%clk 0:01:46.8]} 22. Rb2
{[%clk 0:00:19.9]} 22... Rd8 {[%clk 0:01:43.2]} 23. Qc5 {[%clk 0:00:07.2]} 23...
Nb4 {[%clk 0:00:59.1]} 24. Rd2 {[%clk 0:00:04]} 24... Rxd2 {[%clk 0:00:42.4]}
25. Nxd2 {[%clk 0:00:04.2]} 25... Bxg2 {[%clk 0:00:42.5]} 26. Kxg2 {[%clk
0:00:04.8]} 26... Qb7+ {[%clk 0:00:39.8]} 27. f3 {[%clk 0:00:03.6]} 27... h5
{[%clk 0:00:34.5]} 28. Qc8+ {[%clk 0:00:03.6]} 28... Kh7 {[%clk 0:00:34.4]} 29.
Qxb7 {[%clk 0:00:03.1]} 29... h4 {[%clk 0:00:31]} 30. Nd7 {[%clk 0:00:01.8]}
30... h3+ {[%clk 0:00:31.9]} 31. Kxh3 {[%clk 0:00:01.8]} 31... Nfd5 {[%clk
0:00:32.5]} 32. Kg2 {[%clk 0:00:02.7]} 32... Ne3+ {[%clk 0:00:32.8]} 33. Kf2
{[%clk 0:00:02.4]} 33... Nbc2 {[%clk 0:00:33.5]} 34. Ne4 {[%clk 0:00:02]} 34...
Nd1+ {[%clk 0:00:34.4]} 35. Kf1 {[%clk 0:00:02.1]} 35... fxe4 {[%clk 0:00:35]}
36. Kg2 {[%clk 0:00:03]} 36... Nde3+ {[%clk 0:00:35.4]} 37. Kh3 {[%clk
0:00:03.1]} 37... exf3 {[%clk 0:00:35.9]} 38. exf3 {[%clk 0:00:03.2]} 38... Nd4
{[%clk 0:00:35.3]} 39. Qe4+ {[%clk 0:00:03.3]} 39... Nef5 {[%clk 0:00:35]} 40.
g4 {[%clk 0:00:03.8]} 40... g6 {[%clk 0:00:35.9]} 41. gxf5 {[%clk 0:00:03.9]}
41... Nxf5 {[%clk 0:00:36.2]} 42. Nf6+ {[%clk 0:00:03.7]} 42... Kg7 {[%clk
0:00:37.1]} 43. Qe5 {[%clk 0:00:04.1]} 43... Kf7 {[%clk 0:00:37.3]} 44. Nd7
{[%clk 0:00:04.6]} 44... Ke7 {[%clk 0:00:37.5]} 45. Nc5 {[%clk 0:00:05.1]} 45...
Kf7 {[%clk 0:00:37.1]} 46. Qxe6+ {[%clk 0:00:05.6]} 46... Kg7 {[%clk 0:00:37.5]}
47. Nd7 {[%clk 0:00:05.2]} 47... Kh6 {[%clk 0:00:38.4]} 48. Qf6 {[%clk
0:00:05.4]} 48... Kh5 {[%clk 0:00:38.7]} 49. Nf8 {[%clk 0:00:05.3]} 49... Kh6
{[%clk 0:00:38.6]} 50. Qxg6# {[%clk 0:00:05.7]} 1-0

[Event "Late-Titled-Tuesday-Blitz-April-30-2024"]
[Site "Chess.com"]
[Date "2024.04.30"]
[Round "8"]
[White "protectiago"]
[Black "The_Straightforward_Rook"]
[Result "0-1"]
[WhiteElo "2059"]
[BlackElo "2480"]
[TimeControl "180+1"]
[EndTime "15:28:03 PDT"]
[Termination "The_Straightforward_Rook won by resignation"]

1. d4 {[%clk 0:02:59.5]} 1... d5 {[%clk 0:02:57.9]} 2. c4 {[%clk 0:02:59.6]}
2... c6 {[%clk 0:02:58.4]} 3. g3 {[%clk 0:02:59.7]} 3... Nf6 {[%clk 0:02:58.2]}
4. Qc2 {[%clk 0:02:59.5]} 4... g6 {[%clk 0:02:56.9]} 5. Bg2 {[%clk 0:02:55.7]}
5... Bf5 {[%clk 0:02:55.9]} 6. Qb3 {[%clk 0:02:55.7]} 6... Qb6 {[%clk
0:02:55.7]} 7. Nf3 {[%clk 0:02:53.8]} 7... Nbd7 {[%clk 0:02:54.1]} 8. O-O {[%clk
0:02:53]} 8... dxc4 {[%clk 0:02:50.6]} 9. Qxc4 {[%clk 0:02:50.9]} 9... Bg7
{[%clk 0:02:50]} 10. Nc3 {[%clk 0:02:49.1]} 10... O-O {[%clk 0:02:44.3]} 11. Re1
{[%clk 0:02:35.8]} 11... Ne4 {[%clk 0:02:33]} 12. Nh4 {[%clk 0:02:25.7]} 12...
Nd6 {[%clk 0:02:17.5]} 13. Qa4 {[%clk 0:02:13.8]} 13... Bxd4 {[%clk 0:02:13.3]}
14. e3 {[%clk 0:02:00]} 14... Bg7 {[%clk 0:02:10.4]} 15. e4 {[%clk 0:01:48.9]}
15... Nc5 {[%clk 0:01:49.1]} 16. Qc2 {[%clk 0:01:37.5]} 16... Bxc3 {[%clk
0:01:43.1]} 17. bxc3 {[%clk 0:01:36.9]} 17... Bxe4 {[%clk 0:01:43.4]} 18. Bxe4
{[%clk 0:01:25.9]} 18... Ndxe4 {[%clk 0:01:44.3]} 19. Bh6 {[%clk 0:01:20]} 19...
f5 {[%clk 0:01:28.2]} 20. Be3 {[%clk 0:00:52.3]} 20... Qa5 {[%clk 0:01:16.4]}
21. f3 {[%clk 0:00:38]} 21... Nf6 {[%clk 0:00:54.8]} 22. Bd4 {[%clk 0:00:17]}
22... Rf7 {[%clk 0:00:41.9]} 23. Qf2 {[%clk 0:00:16.5]} 23... Nd3 {[%clk
0:00:37.2]} 24. Qd2 {[%clk 0:00:16.9]} 24... Nxe1 {[%clk 0:00:37]} 25. Rxe1
{[%clk 0:00:17.2]} 25... Qd5 {[%clk 0:00:35.1]} 26. Ng2 {[%clk 0:00:16.2]} 26...
c5 {[%clk 0:00:30.4]} 27. Re5 {[%clk 0:00:16.2]} 27... Qxf3 {[%clk 0:00:25.3]}
28. Rxc5 {[%clk 0:00:16.4]} 28... Rd8 {[%clk 0:00:23.4]} 29. Qh6 {[%clk
0:00:12.9]} 29... Qd1+ {[%clk 0:00:20.1]} 30. Kf2 {[%clk 0:00:11.3]} 30... Rxd4
{[%clk 0:00:18.9]} 31. Rc8+ {[%clk 0:00:10.1]} 31... Rd8 {[%clk 0:00:18.5]} 32.
Rxd8+ {[%clk 0:00:10.3]} 32... Qxd8 {[%clk 0:00:19.4]} 33. Nf4 {[%clk
0:00:10.2]} 33... Qb6+ {[%clk 0:00:19.1]} 34. Kg2 {[%clk 0:00:10]} 34... Qc6+
{[%clk 0:00:19.2]} 35. Kh3 {[%clk 0:00:09.8]} 35... Qd7 {[%clk 0:00:16.6]} 36.
c4 {[%clk 0:00:07.6]} 36... e5 {[%clk 0:00:16.9]} 37. Ne2 {[%clk 0:00:06.6]}
37... f4+ {[%clk 0:00:17]} 38. Kg2 {[%clk 0:00:06.7]} 38... f3+ {[%clk
0:00:17.1]} 39. Kxf3 {[%clk 0:00:07]} 39... Ng4+ {[%clk 0:00:17.3]} 40. Ke4
{[%clk 0:00:05.4]} 40... Nxh6 {[%clk 0:00:17.5]} 0-1